[Event "51st La Roda Open 2025"]
[Site "La Roda"]
[Date "2025.04.17"]
[Round "4.5"]
[White "Gomez Falagan, Daniel"]
[Black "Kanov, Nikola"]
[Result "1-0"]
[Annotator "RC"]
[ECO "E44"]
[WhiteElo "2254"]
[BlackElo "2413"]
[PlyCount "109"]
[EventDate "2025.04.15"]
[EventType "swiss"]
[EventCountry "ESP"]
[SourceTitle "playchess.com"]
[Source "ChessBase"]
[SourceQuality "1"]
[TimeControl "5400+30"]

1. d4 {[%emt 0:00:03]} Nf6 {[%emt 0:00:22]} 2. c4 {[%emt 0:00:07]} e6 {[%emt 0:00:10]} 3. Nc3 {[%emt 0:00:05]} Bb4 {[%emt 0:00:23]} 4. e3 {[%emt 0:00:07]} b6 {[%emt 0:00:47]} 5. Nge2 {[%emt 0:00:09]} Ne4 {[%emt 0:00:49]} 6. Bd2 {[%emt 0:00:18]} Nxd2 {[%emt 0:01:17]} 7. Qxd2 {[%emt 0:00:07]} O-O {[%emt 0:02:53]} 8. a3 {[%emt 0:04:02]} Be7 {[%emt 0:00:44]} 9. d5 {[%emt 0:02:12]} a5 {[%emt 0:10:39]} 10. g3 {[%emt 0:04:58]} Na6 {[%emt 0:13:34]} 11. Bg2 {[%emt 0:02:48]} Bb7 {[%emt 0:01:16]} 12. O-O {[%emt 0:06:48]} Nc5 {[%emt 0:04:12]} 13. Qc2 {[%emt 0:01:36]} exd5 {[%emt 0:08:44]} 14. Nxd5 {[%emt 0:02:15]} a4 {[%emt 0:02:29]} 15. Nec3 {[%emt 0:04:54]} Bxd5 {[%emt 0:15:10]} 16. Nxd5 {[%emt 0:03:29]} Ra5 {[%emt 0:03:08]} 17. Rad1 {[%emt 0:09:52]} Re8 {[%emt 0:01:24]} 18. e4 {[%emt 0:04:08]} Bf8 {[%emt 0:05:27]} 19. f4 {[%emt 0:02:59]} c6 {[%emt 0:01:39]} 20. Nc3 {[%emt 0:01:01]} Qf6 {[%emt 0:04:55]} 21. Kh1 {[%emt 0:06:30]} Qh6 {[%emt 0:01:34]} 22. Qf2 {[%emt 0:02:00]} d6 {[%emt 0:03:12]} 23. e5 {[%emt 0:05:06]} dxe5 {[%emt 0:00:34]} 24. fxe5 {[%emt 0:00:07]} Ra7 {[%emt 0:00:20]} 25. Qf4 {[%emt 0:07:58]} Qe6 {[%emt 0:01:47]} 26. Ne2 {[%emt 0:01:49]} Qxe5 {[%emt 0:07:49]} 27. Qxe5 {[%emt 0:00:29]} Rxe5 {[%emt 0:00:02]} 28. Nd4 {[%emt 0:00:09]} Rc7 {[%emt 0:01:08]} 29. Bxc6 {[%emt 0:01:18]} g6 {[%emt 0:01:51]} 30. Bd5 {[%emt 0:03:16]} Bg7 {[%emt 0:01:27]} 31. Nb5 {[%emt 0:07:00]} Rd7 {[%emt 0:01:23]} 32. Nd6 {[%emt 0:01:34]} Ree7 {[%emt 0:03:04]} 33. Nc8 {[%emt 0:05:55]} Re2 {[%emt 0:00:26]} 34. Nxb6 {[%emt 0:12:21]} Rc7 {[%emt 0:00:54]} 35. Bf3 {[%emt 0:00:00]} Re8 {[%emt 0:00:47]} 36. Rf2 {[%emt 0:00:00]} Rb8 {[%emt 0:01:10]} 37. Nd5 {[%emt 0:00:00]} Rd7 {[%emt 0:00:35]} 38. Rdd2 {[%emt 0:00:00]} Kf8 {[%emt 0:00:28]} 39. Nb4 {[%emt 0:00:00]} Rbd8 {[%emt 0:00:43]} 40. Rxd7 {[%emt 0:00:00]} Rxd7 {[%emt 0:00:01]} 41. Bd5 {[%emt 0:00:00]} Re7 {[%emt 0:00:10]} 42. Kg2 {[%emt 0:00:00]} f5 {[%emt 0:00:37]} 43. Nc6 {[%emt 0:00:59]} Re3 {[%emt 0:00:15]} 44. g4 {[%emt 0:01:27]} Nd3 {[%emt 0:00:53]} 45. Rf3 {[%emt 0:00:05]} Re2+ {[%emt 0:00:27]} 46. Kf1 {[%emt 0:00:37]} Re1+ {[%emt 0:00:03]} 47. Kg2 {[%emt 0:00:04]} Rd1 {[%emt 0:00:37]} 48. Kh3 {[%emt 0:01:34]} Ne1 {[%emt 0:00:23]} 49. Rf1 {[%emt 0:01:47]} Rd3+ {[%emt 0:01:24]} 50. Kh4 {[%emt 0:00:04]} Bf6+ {[%emt 0:00:44]} 51. g5 {[%emt 0:00:10]} Kg7 {[%emt 0:00:23]} 52. Rxe1 {[%emt 0:00:43]} Bxg5+ {[%emt 0:00:43]} 53. Kxg5 {[%emt 0:00:07]} h6+ {[%emt 0:00:07]} 54. Kf4 {[%emt 0:00:08]} Kf6 {[%emt 0:00:25]} 55. Re6+ {[%emt 0:00:10]} 1-0

[Event "51st La Roda Open 2025"]
[Site "La Roda"]
[Date "2025.04.17"]
[Round "4.6"]
[White "Gumularz, Szymon"]
[Black "Vehi Bach, Victor Manuel"]
[Result "1-0"]
[Annotator "TA"]
[ECO "B42"]
[WhiteElo "2604"]
[BlackElo "2178"]
[PlyCount "75"]
[EventDate "2025.04.15"]
[EventType "swiss"]
[EventCountry "ESP"]
[SourceTitle "playchess.com"]
[Source "ChessBase"]
[SourceQuality "1"]
[TimeControl "5400+30"]

{[%evp 11,75,44,58,43,35,33,42,37,38,25,33,26,49,19,13,20,33,18,37,11,37,29,50,50,50,41,53,53,53,53,53,53,68,68,72,59,58,60,64,67,64,50,131,102,131,130,145,152,143,147,156,151,154,132,189,140,246,246,245,247,247,241,257,249,249,209]} 1. e4 {[%emt 0:00:03]} c5 {[%emt 0:00:14]} 2. Nf3 {[%emt 0:00:06]} e6 {[%emt 0:00:07][%cal Be7e6,Be6e5][%mdl 32]} 3. d4 {[%emt 0:00:06]} cxd4 {[%emt 0:00:04]} 4. Nxd4 {[%emt 0:00:07]} a6 {[%emt 0:00:08]} 5. Bd3 {[%emt 0:00:07]} Nf6 {[%emt 0:00:50]} 6. O-O {[%emt 0:00:08]} e5 {[%emt 0:02:43]} 7. Nb3 {[%emt 0:03:01] B42: Sicilian: Kan Variation: 5 Bd3.} d6 {[%emt 0:00:38]} 8. c4 {[%emt 0:00:58]} Be7 {[%emt 0:00:09]} 9. Nc3 {[%emt 0:00:46] White is slightly better.} O-O {[%emt 0:00:16]} 10. h3 {[%emt 0:01:06]} Nc6 {[%emt 0:02:05]} 11. Be3 {[%emt 0:00:12]} Be6 {[%emt 0:00:10]} 12. Nd5 {[%emt 0:01:35]} Nd7 {[%emt 0:00:19]} 13. Qd2 {[%emt 0:00:39]} h6 $146 {[%emt 0:02:58]} (13... Re8 14. Rfd1 Bf8 15. Nc1 Nc5 16. b4 Nxd3 17. Qxd3 Bxd5 18. cxd5 Nd4 19. Bxd4 exd4 {1-0 Lin,C (2446)-Yu,S (2507) CHN-chT Beijing 2012 (2)}) 14. Nxe7+ {[%emt 0:09:48]} Qxe7 {[%emt 0:01:50]} 15. f3 {[%emt 0:00:19]} Nc5 {[%emt 0:16:48]} 16. Be2 {[%emt 0:00:34]} Rab8 {[%emt 0:29:09]} 17. Rfd1 {[%emt 0:01:06][%csl Od6] White attacks a weakness} Rfd8 {[%emt 0:01:05]} 18. Na5 {[%emt 0:07:38]} Nxa5 {[%emt 0:01:21]} 19. Qxa5 {[%emt 0:00:05]} b6 {[%emt 0:00:46]} 20. Qe1 {[%emt 0:00:06]} a5 {[%emt 0:03:56]} 21. b3 {[%emt 0:00:18]} f5 {[%emt 0:01:47]} 22. exf5 {[%emt 0:00:08]} Bxf5 {[%emt 0:00:01]} 23. Qg3 {[%emt 0:00:14]} Qf6 {[%emt 0:07:57]} 24. Rd2 {[%emt 0:00:56]} Rd7 {[%emt 0:00:50]} 25. Rad1 {[%emt 0:00:34] White has strong rooks and is better} Rbd8 {[%emt 0:00:07]} 26. Kh2 {[%emt 0:01:11]} Qg6 {[%emt 0:03:22]} (26... Bg6 $14) 27. Qh4 {[%emt 0:03:47]} Be6 {[%emt 0:12:13]} 28. f4 {[%emt 0:16:03]} exf4 {[%emt 0:07:14]} 29. Bxf4 {[%emt 0:00:25][%cal Oe2f3]} Bf5 {[%emt 0:00:40]} 30. Bh5 {[%emt 0:11:28]} Qe6 {[%emt 0:02:25]} 31. Re2 {[%emt 0:03:51]} Ne4 {[%emt 0:00:16]} 32. Bf3 $36 {[%emt 0:00:55][%mdl 2048] White is in control. White is much more active. This pair of bishops is nice.} g5 {[%emt 0:02:03]} (32... Qf6 $16 33. Qxf6 Nxf6) 33. Qe1 $18 {[%emt 0:01:07]} gxf4 {[%emt 0:01:22]} (33... Re8 $16 34. Bxe4 Bxe4) 34. Bxe4 {[%emt 0:00:04] [#] Bd5 would now be deadly.} Qg6 {[%emt 0:00:57]} 35. Bxf5 {[%emt 0:02:01]} Qxf5 {[%emt 0:00:01]} 36. Rd5 {[%emt 0:36:58]} Qf7 {[%emt 0:00:54]} 37. Re6 {[%emt 0:00:00]} Qg7 {[%emt 0:00:14]} 38. Rh5 {[%emt 0:00:00] Weighted Error Value: White=0.06 (flawless) /Black=0.16 (very precise)   Mistake:       	---       	Black=3      Inaccurate:     	White=2     	Black=1      OK:         	White=15    	Black=10     Best:        	White=2     	Black=2} 1-0

[Event "51st La Roda Open 2025"]
[Site "La Roda"]
[Date "2025.04.17"]
[Round "4.7"]
[White "Lopez Martinez, Josep Manuel"]
[Black "Hernandez Leon, Alberto"]
[Result "1-0"]
[Annotator "RC"]
[ECO "E70"]
[WhiteElo "2460"]
[BlackElo "2174"]
[PlyCount "91"]
[EventDate "2025.04.15"]
[EventType "swiss"]
[EventCountry "ESP"]
[SourceTitle "playchess.com"]
[Source "ChessBase"]
[SourceQuality "1"]
[TimeControl "5400+30"]

1. d4 {[%emt 0:14:14]} c5 {[%emt 0:00:21]} 2. d5 {[%emt 0:00:24]} g6 {[%emt 0:00:16]} 3. e4 {[%emt 0:00:47]} d6 {[%emt 0:00:53]} 4. c4 {[%emt 0:02:46]} Bg7 {[%emt 0:00:37]} 5. Bd3 {[%emt 0:04:54]} Nf6 {[%emt 0:01:16]} 6. Nc3 {[%emt 0:00:17]} O-O {[%emt 0:00:32]} 7. Nge2 {[%emt 0:00:21]} e6 {[%emt 0:01:25]} 8. h3 {[%emt 0:00:49]} Na6 {[%emt 0:02:37]} 9. O-O {[%emt 0:02:49]} Nc7 {[%emt 0:00:36]} 10. f4 {[%emt 0:07:25]} exd5 {[%emt 0:03:22]} 11. exd5 {[%emt 0:00:22]} b5 {[%emt 0:02:16]} 12. cxb5 {[%emt 0:00:33]} a6 {[%emt 0:04:30]} 13. bxa6 {[%emt 0:01:57]} Bxa6 {[%emt 0:00:13]} 14. f5 {[%emt 0:00:35]} Qe7 {[%emt 0:18:49]} 15. Bg5 {[%emt 0:05:14]} h6 {[%emt 0:01:28]} 16. Bxf6 {[%emt 0:00:45]} Qe3+ {[%emt 0:00:10]} 17. Kh1 {[%emt 0:00:24]} Qxd3 {[%emt 0:02:50]} 18. Bxg7 {[%emt 0:03:05]} Qxd1 {[%emt 0:00:14]} 19. Raxd1 {[%emt 0:00:21]} Kxg7 {[%emt 0:01:10]} 20. Rf2 {[%emt 0:00:44]} Rfe8 {[%emt 0:05:37]} 21. Ng3 {[%emt 0:05:47]} Re5 {[%emt 0:03:32]} 22. fxg6 {[%emt 0:00:44]} fxg6 {[%emt 0:00:15]} 23. Nge4 {[%emt 0:00:24]} Rd8 {[%emt 0:04:15]} 24. Rf6 {[%emt 0:01:44]} Bc4 {[%emt 0:15:39]} 25. Rxd6 {[%emt 0:01:18]} Rxd6 {[%emt 0:00:41]} 26. Nxd6 {[%emt 0:00:14]} Bxd5 {[%emt 0:00:11]} 27. Nxd5 {[%emt 0:01:33]} Nxd5 {[%emt 0:00:48]} 28. Nc4 {[%emt 0:00:46]} Re4 {[%emt 0:07:15]} 29. b3 {[%emt 0:00:21]} Nc3 {[%emt 0:01:56]} 30. Rd2 {[%emt 0:00:12]} Ne2 {[%emt 0:02:20]} 31. Rd7+ {[%emt 0:03:59]} Kg8 {[%emt 0:02:08]} 32. Nd2 {[%emt 0:06:05]} Re3 {[%emt 0:01:25]} 33. a4 {[%emt 0:01:10]} Nf4 {[%emt 0:01:48]} 34. a5 {[%emt 0:01:05]} Re1+ {[%emt 0:01:14]} 35. Kh2 {[%emt 0:00:07]} Ra1 {[%emt 0:00:04]} 36. Nc4 {[%emt 0:00:22]} h5 {[%emt 0:03:34]} 37. h4 {[%emt 0:00:39]} g5 {[%emt 0:01:07]} 38. hxg5 {[%emt 0:00:40]} h4 {[%emt 0:00:07]} 39. g3 {[%emt 0:03:18]} hxg3+ {[%emt 0:00:07]} 40. Kxg3 {[%emt 0:00:05]} Ne2+ {[%emt 0:00:05]} 41. Kg4 {[%emt 0:00:52]} Rg1+ {[%emt 0:00:28]} 42. Kf5 {[%emt 0:00:25]} Nd4+ {[%emt 0:00:28]} 43. Kg6 {[%emt 0:02:37]} Ne6 {[%emt 0:00:07]} 44. Kf6 {[%emt 0:03:00]} Nf8 {[%emt 0:00:48]} 45. Rg7+ {[%emt 0:03:26]} Kh8 {[%emt 0:00:10]} 46. Rb7 {[%emt 0:01:08]} 1-0

[Event "51st La Roda Open 2025"]
[Site "La Roda"]
[Date "2025.04.17"]
[Round "4.8"]
[White "Sierra Vallina, Lionel"]
[Black "Diez Fraile, David"]
[Result "1/2-1/2"]
[Annotator "RC"]
[ECO "B46"]
[WhiteElo "2342"]
[BlackElo "2116"]
[PlyCount "125"]
[EventDate "2025.04.15"]
[EventType "swiss"]
[EventCountry "ESP"]
[SourceTitle "playchess.com"]
[Source "ChessBase"]
[SourceQuality "1"]
[TimeControl "5400+30"]

1. e4 {[%emt 0:00:02]} c5 {[%emt 0:00:16]} 2. Nf3 {[%emt 0:00:08]} e6 {[%emt 0:00:13]} 3. d4 {[%emt 0:00:51]} cxd4 {[%emt 0:00:08]} 4. Nxd4 {[%emt 0:00:04]} Nc6 {[%emt 0:00:21]} 5. Nc3 {[%emt 0:00:38]} a6 {[%emt 0:00:50]} 6. g3 {[%emt 0:01:34]} Nf6 {[%emt 0:06:52]} 7. Nxc6 {[%emt 0:20:47]} bxc6 {[%emt 0:02:21]} 8. e5 {[%emt 0:00:31]} Nd5 {[%emt 0:01:45]} 9. Bd2 {[%emt 0:09:39]} Qc7 {[%emt 0:16:57]} 10. Qe2 {[%emt 0:05:42]} Bb4 {[%emt 0:08:48]} 11. Nb1 {[%emt 0:14:53]} Be7 {[%emt 0:08:01]} 12. c4 {[%emt 0:04:18]} Nb4 {[%emt 0:01:12]} 13. Bc3 {[%emt 0:00:04]} c5 {[%emt 0:01:24]} 14. Bg2 {[%emt 0:02:46]} Bb7 {[%emt 0:01:39]} 15. Bxb7 {[%emt 0:00:11]} Qxb7 {[%emt 0:00:14]} 16. O-O {[%emt 0:00:09]} h5 {[%emt 0:23:30]} 17. Nd2 {[%emt 0:05:50]} h4 {[%emt 0:00:24]} 18. Ne4 {[%emt 0:02:23]} g6 {[%emt 0:05:43]} 19. Rfd1 {[%emt 0:04:15]} Nc6 {[%emt 0:05:18]} 20. Rd6 {[%emt 0:04:50]} hxg3 {[%emt 0:03:52]} 21. fxg3 {[%emt 0:04:11]} Rh5 {[%emt 0:03:33]} 22. Rad1 {[%emt 0:06:52]} Nd4 {[%emt 0:04:14]} 23. Bxd4 {[%emt 0:05:19]} cxd4 {[%emt 0:00:06]} 24. R1xd4 {[%emt 0:00:04]} Rxe5 {[%emt 0:01:41]} 25. Rxd7 {[%emt 0:06:23]} Qxd7 {[%emt 0:02:12]} 26. Rxd7 {[%emt 0:00:02]} Kxd7 {[%emt 0:00:07]} 27. Qf3 {[%emt 0:00:48]} Rd8 {[%emt 0:01:09]} 28. b4 {[%emt 0:00:43]} Ke8 {[%emt 0:00:43]} 29. c5 {[%emt 0:00:15]} Rd4 {[%emt 0:00:44]} 30. Nd6+ {[%emt 0:00:40]} Bxd6 {[%emt 0:00:18]} 31. Qc6+ {[%emt 0:00:29]} Ke7 {[%emt 0:00:26]} 32. cxd6+ {[%emt 0:00:04]} Kf6 {[%emt 0:00:32]} 33. Qxa6 {[%emt 0:00:50]} Rxb4 {[%emt 0:00:43]} 34. Qf1+ {[%emt 0:00:12]} Kg7 {[%emt 0:00:24]} 35. Qa1 {[%emt 0:00:48]} f6 {[%emt 0:00:37]} 36. Qc3 {[%emt 0:00:24]} Rb1+ {[%emt 0:00:14]} 37. Kg2 {[%emt 0:00:10]} Rd1 {[%emt 0:00:32]} 38. Qc7+ {[%emt 0:00:09]} Kh6 {[%emt 0:00:13]} 39. Qe7 {[%emt 0:00:01]} Rd2+ {[%emt 0:00:13]} 40. Kf3 {[%emt 0:00:18]} Rd3+ {[%emt 0:00:14]} 41. Kg4 {[%emt 0:00:49]} Rd4+ {[%emt 0:01:05]} 42. Kh3 {[%emt 0:00:13]} Kg5 {[%emt 0:00:58]} 43. d7 {[%emt 0:01:16]} Red5 {[%emt 0:00:09]} 44. Qxe6 {[%emt 0:00:06]} Rxd7 {[%emt 0:00:07]} 45. Qe3+ {[%emt 0:00:06]} Kh5 {[%emt 0:00:33]} 46. Qf3+ {[%emt 0:00:46]} Kg5 {[%emt 0:00:25]} 47. Qe3+ {[%emt 0:00:04]} Kh5 {[%emt 0:00:06]} 48. a4 {[%emt 0:01:13]} g5 {[%emt 0:01:43]} 49. Qe8+ {[%emt 0:00:16]} Kh6 {[%emt 0:00:05]} 50. a5 {[%emt 0:01:42]} Kg7 {[%emt 0:00:14]} 51. a6 {[%emt 0:00:17]} Ra7 {[%emt 0:01:12]} 52. Qb8 {[%emt 0:00:30]} Rdd7 {[%emt 0:00:25]} 53. Qb5 {[%emt 0:00:21]} Re7 {[%emt 0:00:18]} 54. Qc6 {[%emt 0:00:24]} Kf7 {[%emt 0:00:30]} 55. Qb6 {[%emt 0:00:08]} Kg6 {[%emt 0:00:18]} 56. Qc6 {[%emt 0:01:10]} Kf7 {[%emt 0:00:09]} 57. Qb6 {[%emt 0:00:17]} Kg6 {[%emt 0:00:05]} 58. Kg4 {[%emt 0:00:55]} Re4+ {[%emt 0:00:08]} 59. Kf3 {[%emt 0:00:04]} Ree7 {[%emt 0:00:04]} 60. Kg4 {[%emt 0:00:50]} Re4+ {[%emt 0:00:05]} 61. Kf3 {[%emt 0:00:04]} Ree7 {[%emt 0:00:03]} 62. Kg4 {[%emt 0:00:06]} Re4+ {[%emt 0:00:05]} 63. Kf3 {[%emt 0:00:04]} 1/2-1/2

[Event "51st La Roda Open 2025"]
[Site "La Roda"]
[Date "2025.04.17"]
[Round "4.9"]
[White "Perez Travieso, Saul"]
[Black "Garcia Jimenez, Santiago"]
[Result "1-0"]
[Annotator "RC"]
[ECO "E06"]
[WhiteElo "2111"]
[BlackElo "2241"]
[PlyCount "93"]
[EventDate "2025.04.15"]
[EventType "swiss"]
[EventCountry "ESP"]
[SourceTitle "playchess.com"]
[Source "ChessBase"]
[SourceQuality "1"]
[TimeControl "5400+30"]

1. d4 {[%emt 0:03:16]} e6 {[%emt 0:00:33]} 2. Nf3 {[%emt 0:00:14]} Nf6 {[%emt 0:00:46]} 3. c4 {[%emt 0:00:09]} d5 {[%emt 0:00:07]} 4. g3 {[%emt 0:00:32]} Be7 {[%emt 0:00:06]} 5. Bg2 {[%emt 0:00:06]} O-O {[%emt 0:00:07]} 6. O-O {[%emt 0:01:28]} a5 {[%emt 0:00:16]} 7. Nc3 {[%emt 0:01:44]} c6 {[%emt 0:00:30]} 8. Nd2 {[%emt 0:01:36]} b5 {[%emt 0:00:11]} 9. cxb5 {[%emt 0:07:13]} cxb5 {[%emt 0:00:08]} 10. e4 {[%emt 0:01:12]} b4 {[%emt 0:00:37]} 11. Ne2 {[%emt 0:00:41]} Ba6 {[%emt 0:06:33]} 12. Re1 {[%emt 0:01:41]} Nc6 {[%emt 0:06:05]} 13. e5 {[%emt 0:02:12]} Bxe2 {[%emt 0:01:23]} 14. Qxe2 {[%emt 0:00:46]} Nd7 {[%emt 0:00:07]} 15. Nf3 {[%emt 0:02:17]} Qb6 {[%emt 0:01:11]} 16. Be3 {[%emt 0:01:07]} b3 {[%emt 0:01:25]} 17. a3 {[%emt 0:00:24]} Rfc8 {[%emt 0:05:31]} 18. Qd1 {[%emt 0:01:45]} a4 {[%emt 0:02:11]} 19. Bf1 {[%emt 0:00:17]} Na5 {[%emt 0:03:07]} 20. Bd3 {[%emt 0:00:57]} Nc4 {[%emt 0:01:21]} 21. Qe2 {[%emt 0:01:33]} Rc7 {[%emt 0:06:10]} 22. h4 {[%emt 0:01:43]} Rac8 {[%emt 0:05:02]} 23. Kg2 {[%emt 0:05:06]} Nxe3+ {[%emt 0:06:46]} 24. Qxe3 {[%emt 0:00:17]} Qc6 {[%emt 0:07:25]} 25. Rh1 {[%emt 0:01:13]} f5 {[%emt 0:09:35]} 26. exf6 {[%emt 0:01:50]} Bxf6 {[%emt 0:04:57]} 27. Rac1 {[%emt 0:08:04]} Qd6 {[%emt 0:00:45]} 28. Rxc7 {[%emt 0:00:04]} Rxc7 {[%emt 0:00:10]} 29. Re1 {[%emt 0:07:33]} Nf8 {[%emt 0:01:13]} 30. Bb5 {[%emt 0:06:05]} Ra7 {[%emt 0:01:47]} 31. Rc1 {[%emt 0:00:24]} Qb6 {[%emt 0:00:05]} 32. Qe2 {[%emt 0:08:06]} Ra5 {[%emt 0:01:27]} 33. Bd3 {[%emt 0:01:02]} Ra7 {[%emt 0:05:15]} 34. Rc8 {[%emt 0:02:25]} Rc7 {[%emt 0:01:26]} 35. Bxh7+ {[%emt 0:01:33]} Kf7 {[%emt 0:00:58]} 36. Rxc7+ {[%emt 0:00:36]} Qxc7 {[%emt 0:00:01]} 37. Bd3 {[%emt 0:00:46]} Qc1 {[%emt 0:00:51]} 38. Ne5+ {[%emt 0:02:18]} Bxe5 {[%emt 0:01:53]} 39. dxe5 {[%emt 0:00:04]} Nd7 {[%emt 0:01:55]} 40. Bb5 {[%emt 0:00:27]} Nc5 {[%emt 0:07:09]} 41. Qh5+ {[%emt 0:08:35]} Kg8 {[%emt 0:00:24]} 42. Qe8+ {[%emt 0:02:32]} Kh7 {[%emt 0:00:02]} 43. Qh5+ {[%emt 0:04:19]} Kg8 {[%emt 0:00:01]} 44. Be8 {[%emt 0:01:27]} d4 {[%emt 0:07:45]} 45. Qf3 {[%emt 0:05:05]} Qc2 {[%emt 0:07:43]} 46. Bf7+ {[%emt 0:10:46]} Kh8 {[%emt 0:00:30]} 47. Qa8+ {[%emt 0:00:30]} 1-0

[Event "51st La Roda Open 2025"]
[Site "La Roda"]
[Date "2025.04.17"]
[Round "4.10"]
[White "Romera Carrion, Ruben"]
[Black "Nomindalai Tumurbaatar"]
[Result "0-1"]
[Annotator "RC"]
[ECO "E92"]
[WhiteElo "1995"]
[BlackElo "2211"]
[PlyCount "114"]
[EventDate "2025.04.15"]
[EventType "swiss"]
[EventCountry "ESP"]
[SourceTitle "playchess.com"]
[Source "ChessBase"]
[SourceQuality "1"]
[TimeControl "5400+30"]

1. d4 {[%emt 0:10:19]} Nf6 {[%emt 0:00:21]} 2. c4 {[%emt 0:00:05]} g6 {[%emt 0:00:13]} 3. Nc3 {[%emt 0:00:04]} Bg7 {[%emt 0:00:17]} 4. e4 {[%emt 0:00:04]} d6 {[%emt 0:00:08]} 5. Nf3 {[%emt 0:00:08]} O-O {[%emt 0:00:25]} 6. Be2 {[%emt 0:00:02]} e5 {[%emt 0:00:21]} 7. dxe5 {[%emt 0:00:09]} dxe5 {[%emt 0:00:12]} 8. Qxd8 {[%emt 0:00:06]} Rxd8 {[%emt 0:00:20]} 9. Bg5 {[%emt 0:00:05]} c6 {[%emt 0:02:44]} 10. Nxe5 {[%emt 0:19:32]} Re8 {[%emt 0:02:54]} 11. O-O-O {[%emt 0:10:26]} Na6 {[%emt 0:04:25]} 12. Rd6 {[%emt 0:19:52]} Be6 {[%emt 0:18:26]} 13. Nf3 {[%emt 0:04:28]} Nc5 {[%emt 0:07:21]} 14. Bxf6 {[%emt 0:06:18]} Bxf6 {[%emt 0:00:06]} 15. e5 {[%emt 0:02:04]} Bg7 {[%emt 0:01:15]} 16. Rhd1 {[%emt 0:03:32]} Bf5 {[%emt 0:06:09]} 17. b4 {[%emt 0:01:06]} Na6 {[%emt 0:01:56]} 18. a3 {[%emt 0:00:21]} Bf8 {[%emt 0:00:35]} 19. c5 {[%emt 0:09:56]} Nc7 {[%emt 0:23:10]} 20. R6d4 {[%emt 0:01:47]} b6 {[%emt 0:00:37]} 21. cxb6 {[%emt 0:03:32]} axb6 {[%emt 0:00:06]} 22. g4 {[%emt 0:03:13]} c5 {[%emt 0:01:41]} 23. gxf5 {[%emt 0:01:59]} cxd4 {[%emt 0:00:06]} 24. Ne4 {[%emt 0:00:58]} Rec8 {[%emt 0:00:47]} 25. Kb2 {[%emt 0:00:28]} Nd5 {[%emt 0:02:56]} 26. Rxd4 {[%emt 0:00:08]} Ne7 {[%emt 0:21:53]} 27. fxg6 {[%emt 0:00:23]} Nxg6 {[%emt 0:01:19]} 28. Nf6+ {[%emt 0:00:05]} Kh8 {[%emt 0:01:18]} 29. Rd7 {[%emt 0:02:37]} Bg7 {[%emt 0:01:46]} 30. Rxf7 {[%emt 0:00:42]} Rf8 {[%emt 0:00:18]} 31. Rxf8+ {[%emt 0:00:35]} Rxf8 {[%emt 0:00:05]} 32. Kb3 {[%emt 0:00:36]} Nxe5 {[%emt 0:00:27]} 33. Nxe5 {[%emt 0:00:23]} Rxf6 {[%emt 0:00:04]} 34. Ng4 {[%emt 0:00:17]} Rf4 {[%emt 0:01:14]} 35. f3 {[%emt 0:00:44]} Bd4 {[%emt 0:00:23]} 36. h3 {[%emt 0:00:34]} h5 {[%emt 0:00:57]} 37. Nh2 {[%emt 0:00:14]} Rh4 {[%emt 0:00:10]} 38. Nf1 {[%emt 0:00:48]} Rxh3 {[%emt 0:01:15]} 39. Kc4 {[%emt 0:00:03]} Bf2 {[%emt 0:00:39]} 40. Kd3 {[%emt 0:01:02]} h4 {[%emt 0:00:36]} 41. Ke4 {[%emt 0:00:28]} Rh1 {[%emt 0:00:19]} 42. f4 {[%emt 0:00:36]} Kg7 {[%emt 0:00:44]} 43. Kf3 {[%emt 0:00:16]} Bd4 {[%emt 0:00:06]} 44. a4 {[%emt 0:00:51]} Rg1 {[%emt 0:00:48]} 45. a5 {[%emt 0:00:26]} bxa5 {[%emt 0:00:05]} 46. bxa5 {[%emt 0:00:02]} h3 {[%emt 0:01:00]} 47. a6 {[%emt 0:00:20]} Rg6 {[%emt 0:00:23]} 48. Bd3 {[%emt 0:00:49]} Rc6 {[%emt 0:00:28]} 49. Ng3 {[%emt 0:00:55]} Rc3 {[%emt 0:00:41]} 50. Ke2 {[%emt 0:00:02]} h2 {[%emt 0:00:24]} 51. Kd2 {[%emt 0:00:51]} Ra3 {[%emt 0:00:05]} 52. Nh1 {[%emt 0:00:31]} Ra1 {[%emt 0:00:40]} 53. Be4 {[%emt 0:00:27]} Rxa6 {[%emt 0:00:05]} 54. Ng3 {[%emt 0:00:22]} Ra2+ {[%emt 0:00:48]} 55. Kd3 {[%emt 0:00:41]} Ra3+ {[%emt 0:00:08]} 56. Kxd4 {[%emt 0:00:36]} Rxg3 {[%emt 0:00:05]} 57. Ke5 {[%emt 0:00:23]} Re3 {[%emt 0:00:10]} 0-1

[Event "51st La Roda Open 2025"]
[Site "La Roda"]
[Date "2025.04.17"]
[Round "4.11"]
[White "Goncalves, Samuel Jesus P"]
[Black "Mazon Menendez, Jorge"]
[Result "1-0"]
[Annotator "RC"]
[ECO "A39"]
[WhiteElo "2248"]
[BlackElo "2032"]
[PlyCount "69"]
[EventDate "2025.04.15"]
[EventType "swiss"]
[EventCountry "ESP"]
[SourceTitle "playchess.com"]
[Source "ChessBase"]
[SourceQuality "1"]
[TimeControl "5400+30"]

1. Nf3 {[%emt 0:02:30]} c5 {[%emt 0:00:51]} 2. g3 {[%emt 0:02:22]} Nf6 {[%emt 0:00:40]} 3. Bg2 {[%emt 0:00:08]} g6 {[%emt 0:00:39]} 4. c4 {[%emt 0:00:42]} Nc6 {[%emt 0:01:15]} 5. Nc3 {[%emt 0:00:12]} Bg7 {[%emt 0:01:24]} 6. d4 {[%emt 0:00:07]} cxd4 {[%emt 0:00:55]} 7. Nxd4 {[%emt 0:00:07]} Nxd4 {[%emt 0:02:41]} 8. Qxd4 {[%emt 0:00:09]} O-O {[%emt 0:00:12]} 9. O-O {[%emt 0:00:12]} d6 {[%emt 0:02:42]} 10. Qd3 {[%emt 0:00:10]} Bf5 {[%emt 0:03:18]} 11. e4 {[%emt 0:00:08]} Be6 {[%emt 0:00:28]} 12. b3 {[%emt 0:00:51]} Ng4 {[%emt 0:02:34]} 13. Bd2 {[%emt 0:03:18]} Qd7 {[%emt 0:04:45]} 14. Rad1 {[%emt 0:04:05]} Rfc8 {[%emt 0:03:00]} 15. Kh1 {[%emt 0:19:31]} a6 {[%emt 0:03:30]} 16. f4 {[%emt 0:03:35]} f5 {[%emt 0:06:12]} 17. exf5 {[%emt 0:04:53]} gxf5 {[%emt 0:00:25]} 18. Nd5 {[%emt 0:04:43]} Rc6 {[%emt 0:08:42]} 19. Rde1 {[%emt 0:03:47]} Kh8 {[%emt 0:04:04]} 20. Qe2 {[%emt 0:06:02]} Bxd5 {[%emt 0:02:07]} 21. Bxd5 {[%emt 0:00:07]} Rc7 {[%emt 0:00:19]} 22. Ba5 {[%emt 0:00:17]} e5 {[%emt 0:04:55]} 23. Bxc7 {[%emt 0:00:35]} Qxc7 {[%emt 0:00:14]} 24. fxe5 {[%emt 0:00:59]} Nxe5 {[%emt 0:01:44]} 25. Rxf5 {[%emt 0:00:52]} Re8 {[%emt 0:03:50]} 26. Rh5 {[%emt 0:05:26]} Rf8 {[%emt 0:04:19]} 27. Qe4 {[%emt 0:02:44]} h6 {[%emt 0:00:32]} 28. Rf5 {[%emt 0:01:36]} Rb8 {[%emt 0:02:06]} 29. Ref1 {[%emt 0:02:44]} b5 {[%emt 0:01:13]} 30. g4 {[%emt 0:02:25]} Qe7 {[%emt 0:05:43]} 31. g5 {[%emt 0:01:00]} Rf8 {[%emt 0:03:33]} 32. gxh6 {[%emt 0:00:47]} Bxh6 {[%emt 0:00:20]} 33. Rxf8+ {[%emt 0:00:25]} Bxf8 {[%emt 0:00:12]} 34. Qf5 {[%emt 0:00:08]} Bh6 {[%emt 0:00:55]} 35. Rg1 {[%emt 0:00:44]} 1-0